Cogmind - Beta 16.1 @@@ ROGUE MODE // 2026.05.01 @ 17:50:33 Player: obl-vn Result: Destroyed self with Latent Energy Streamer Performance ------------- Evolutions (4) 2000 Regions Visited (12) 2400 Robots Destroyed (210) 1050 Value Destroyed (5450) 5450 Prototype IDs (40) 800 Alien Tech Used (0) 0 Bonus (1324) 1324 TOTAL SCORE: 13024 Bonus ------- High Alert Combat Kills 199 Follower Combat Kills 353 Aligned with FarCom 300 Met Imprinter 300 Triggered Deep Caves Wall 500 Exposed GOLEM Chamber 500 Friendly Fire -828 Cogmind --------- Core Integrity 0/850 Matter 98/300 Energy 335/700 System Corruption 31% Temperature Cool (4) Movement Walking (260) Ox2 Location -6/Deep Caves Parts ------- > --- POWER (2) -------- Zionite Light DM Reactor Zionite Light DM Reactor > --- PROPULSION (4) --- Flexi-carbon Leg > --- UTILITY (7) ------ Improved Cooling System Large Storage Unit Zionite Biocell Advanced Targeting Computer > --- WEAPON (2) ------- Latent Energy Streamer Advanced EMP Blaster > --- INVENTORY (15) --- Zionite Light DM Reactor Improved VSS Leg Zionite Composite Leg I Experimental Heat Sink Experimental Heat Sink Energy Filter Improved Reaction Control System Phase Shifter Phase Shifter Hacking Drone Bay (1/1) Precision Assault Rifle Antimatter Cannon Antimatter Cannon Power Sword Peak State ------------ > --- POWER ------------ Zionite Light DM Reactor Zionite Light DM Reactor > --- PROPULSION ------- Flexi-carbon Leg Flexi-carbon Leg Flexi-carbon Leg Improved VSS Leg > --- UTILITY ---------- Improved Cooling System Large Storage Unit Zionite Biocell Advanced Targeting Computer Improved Reaction Control System Zionite Light Carapace Zionite Light Carapace > --- WEAPON ----------- Latent Energy Streamer Antimatter Cannon > --- INVENTORY -------- Zionite Light DM Reactor Improved VSS Leg Zionite Composite Leg I Experimental Heat Sink Experimental Heat Sink Energy Filter Particle Charger Phase Shifter Phase Shifter Zionite Light Carapace Hacking Drone Bay Precision Assault Rifle Antimatter Cannon Advanced EMP Blaster Power Sword [Rating: 91] Favorites ----------- Power Cooled Ion Engine Engine Cooled Ion Engine Power Core Fission Core Reactor Zionite Light DM Reactor Propulsion Light Treads Treads Light Treads Leg Flexi-carbon Leg Utility High-capacity Storage Unit Device Shield Generator Storage High-capacity Storage Unit Processor Advanced Terrain Scan Processor Protection Improved Medium Armor Plating Weapon Minigun Energy Gun Heavy Particle Gun Energy Cannon Particle Cannon Ballistic Gun Minigun Ballistic Cannon Antimatter Cannon Launcher Advanced EMP Blaster Special Weapon RU-N14's Throwing Claymores Slashing Weapon Power Sword Special Melee Weapon Datajack Build | -11 -10 -10 -10 -9 -8 -8 -7 -6 -6 -6 -6 -6 ------- Run | Yrd Mat Min Exi Min Mat Sto Fac Fac Low Low Zio Dee Slots Evolved 8 | . . . . . 4 . 2 2 . . . . Power 1 | . . . . . . . . 1 . . . . Propulsion 2 | . . . . . 2 . . . . . . . Utility 5 | . . . . . 2 . 2 1 . . . . Weapon . | . . . . . . . . . . . . . Parts Attached 138 | 6 14 . 5 . 19 15 20 15 2 2 23 17 Power 12 | 1 2 . . . 2 2 . 1 . . 2 2 Engine 9 | 1 2 . . . 2 2 . 1 . . 1 . Core 1 | . . . . . . . . . . . 1 . Reactor 2 | . . . . . . . . . . . . 2 Propulsion 39 | 2 2 . . . 6 6 7 7 1 1 1 6 Treads 34 | 2 2 . . . 6 6 7 6 1 1 1 2 Leg 5 | . . . . . . . . 1 . . . 4 Wheel . | . . . . . . . . . . . . . Hover . | . . . . . . . . . . . . . Flight . | . . . . . . . . . . . . . Utility 53 | 1 5 . 1 . 7 4 9 5 1 1 11 8 Device 24 | . 3 . . . 3 1 4 3 . . 7 3 Storage 5 | 1 1 . 1 . . . . . . 1 . 1 Processor 8 | . 1 . . . 1 . 3 1 . . 2 . Hackware . | . . . . . . . . . . . . . Protection 16 | . . . . . 3 3 2 1 1 . 2 4 Artifact . | . . . . . . . . . . . . . Weapon 34 | 2 5 . 4 . 4 3 4 2 . . 9 1 Energy Gun 2 | . . . . . 1 . . . . . . 1 Energy Cannon 4 | . 3 . 1 . . . . . . . . . Ballistic Gun 12 | 2 . . 2 . 2 1 2 . . . 3 . Ballistic Cannon 5 | . 1 . . . . . 2 1 . . 1 . Launcher 4 | . . . . . 1 2 . 1 . . . . Special Weapon 4 | . . . . . . . . . . . 4 . Impact Weapon . | . . . . . . . . . . . . . Slashing Weapon 2 | . . . 1 . . . . . . . 1 . Piercing Weapon . | . . . . . . . . . . . . . Special Melee Weapon 1 | . 1 . . . . . . . . . . . Unidentified Prototypes 13 | . . . . . 2 2 1 . . . 2 6 Corrupted Parts 2 | . . . . . . . . . . . . 2 System Corruption 14 | . . . . . . . . . . . . 14 Parts Lost 30 | . . . . . 1 1 1 1 . 2 5 19 Power 3 | . . . . . . . . . . . 1 2 Propulsion 10 | . . . . . . . . . . . . 10 Utility 15 | . . . . . . 1 1 1 . 2 4 6 Weapon 2 | . . . . . 1 . . . . . . 1 Highest Loss Streak 11 | . . . . . 1 1 1 1 . 2 5 11 To Critical Strikes . | . . . . . . . . . . . . . Average Backups 18 | . 10 15 14 15 18 19 19 19 19 19 19 17 Power 1 | . 1 2 2 2 1 1 1 . 1 1 . . Propulsion 4 | . 1 2 2 2 4 5 5 5 6 6 6 4 Utility 6 | . 2 5 5 6 7 8 9 8 6 6 5 7 Weapon 5 | . 4 5 5 5 5 5 4 5 5 6 6 4 Tool/Special . | . . . . . . . . . . . . . Unused Backups 42 | . 5 . 1 . 7 6 5 6 1 . 4 7 Power 3 | . . . . . . 1 1 . . . . 1 Propulsion 10 | . 1 . . . . 3 1 3 . . 1 1 Utility 16 | . . . . . 2 2 1 2 1 . 3 5 Weapon 11 | . 4 . 1 . 3 . 2 1 . . . . Tool/Special 2 | . . . . . 2 . . . . . . . Average Slot Usage (%) 97 | . 98 100 91 100 99 99 97 99 99 99 95 85 Engine 10 | . 14 14 14 14 9 9 7 13 13 13 11 2 Treads 29 | . 27 28 28 28 35 36 29 26 25 26 25 12 Device 11 | . 8 14 14 14 12 8 7 12 19 16 12 12 Storage 9 | . 14 14 14 14 9 9 7 6 6 9 11 9 Processor 7 | . 5 . . . 5 9 19 19 13 9 1 6 Protection 8 | . . . . . 8 9 7 6 6 9 17 7 Energy Cannon 3 | . 15 28 5 . 3 . . . . . . . Ballistic Gun 9 | . 7 . 13 28 14 17 7 6 6 5 3 6 Ballistic Cannon 3 | . 4 . . . . . 6 5 6 5 6 1 Peak Build Rating 91 | 6 12 12 26 13 25 37 55 67 69 70 77 91 Average Rating 41 | 3 9 12 11 13 22 32 48 63 68 69 69 72 On Entrance 34 | . 6 12 12 13 13 25 35 53 67 69 70 71 Avg Prop Armor Cover (%) 4 | . . . . . . . . . . . . 4 Naked Turns . | . . . . . . . . . . . . . Heaviest Build 100 | 14 36 36 38 34 63 70 78 85 80 91 100 82 Greatest Support 114 | 40 40 40 40 40 80 89 112 98 114 114 114 108 Greatest Overweight (x) 1 | 1 . . . . . . . . 1 . . 1 Average Overweight (x) . | . . . . . . . . . . . . . Largest Inventory Capacity 20 | 8 15 15 20 15 20 20 20 20 20 20 20 20 Average Capacity 18 | 6 14 15 15 15 18 20 20 20 20 20 20 17 Most Carried 20 | 5 15 15 15 15 20 20 20 20 20 20 20 20 Average Carried 18 | 1 10 15 14 15 18 19 19 19 19 19 19 17 Final Capacity 20 | 8 15 15 15 15 20 20 20 20 20 20 20 15 Final Carried 20 | . 15 15 15 15 20 20 20 20 20 20 20 14 Class Distribution -------------------- 50% | Mutant 17% | Scavenger-Mutant 12% | Skirmisher 11% | Derelict-Mutant 7% | Infiltrator-Mutant Dominant Class ---------------- Mutant | -10/Materials Mutant | -10/Mines Mutant | -10/Exiles Mutant | -9/Mines Scavenger-Mutant | -8/Materials Mutant | -8/Storage Skirmisher | -7/Factory Skirmisher | -6/Factory Infiltrator-Mutant | -6/Lower Caves Infiltrator-Mutant | -6/Lower Caves Derelict-Mutant | -6/Zion Scavenger-Mutant | -6/Deep Caves Resources | -11 -10 -10 -10 -9 -8 -8 -7 -6 -6 -6 -6 -6 ----------- Run | Yrd Mat Min Exi Min Mat Sto Fac Fac Low Low Zio Dee Matter Collected 6098 | 246 263 121 90 16 872 783 1032 606 370 309 952 438 Remotely . | . . . . . . . . . . . . . Salvage Created 7880 | . 492 74 . . 1538 1496 1435 526 47 190 1017 1065 Parts 405 | . 39 4 . . 93 74 85 27 6 6 51 20 Haulers Intercepted 13 | . 1 . . . 5 5 2 . . . . . Recyclers Shooed 8 | . . 1 . . 1 3 2 1 . . . . Parts Field Recycled . | . . . . . . . . . . . . . Retrieved Matter . | . . . . . . . . . . . . . Parts Self-Destructed 10 | . . . . . . . . . 4 6 . . Prevented 2 | . . . . . . . . . 2 . . . Parts Restored . | . . . . . . . . . . . . . Kills | -11 -10 -10 -10 -9 -8 -8 -7 -6 -6 -6 -6 -6 ------- Run | Yrd Mat Min Exi Min Mat Sto Fac Fac Low Low Zio Dee Combat Hostiles Destroyed 139 | . 8 4 . . 29 19 19 8 2 6 7 37 Melee 5 | . . . . . . . . . . . . 5 Guns 50 | . 2 . . . 17 9 6 4 1 3 4 4 Cannons 34 | . 6 4 . . 7 . 10 3 1 3 . . AOE 44 | . . . . . 5 9 3 1 . . 2 24 Classes Destroyed 25 | . 8 . . . 3 3 2 2 1 . 3 3 Worker 12 | . 3 . . . 3 2 4 . . . . . Builder 18 | . 2 . . . 2 3 11 . . . . . Tunneler 2 | . . . . . . . 2 . . . . . Hauler 13 | . 1 . . . 5 5 2 . . . . . Recycler 14 | . . . . . 2 3 7 2 . . . . Mechanic 2 | . 1 . . . . . 1 . . . . . Operator 4 | . 1 . . . 3 . . . . . . . Watcher 5 | . 2 . . . . 1 1 1 . . . . Swarmer 27 | . 3 4 . . 11 4 . 2 . 3 . . Grunt 37 | . 5 . . . 12 7 11 . . 2 . . Brawler 2 | . . . . . . 1 . . . 1 . . Duelist 1 | . . . . . . 1 . . . . . . Protector 1 | . . . . . . 1 . . . . . . Sentry 11 | . . . . . 5 4 2 . . . . . Specialist 2 | . . . . . . . . 2 . . . . Hunter 2 | . . . . . 1 1 . . . . . . Programmer 9 | . . . . . . . 6 2 1 . . . Heavy 2 | . . . . . . . . 2 . . . . Zionite 29 | . . . . . . . . . . . 29 . Z-Light 5 | . . . . . . . . . . . . 5 Tinkerer 2 | . . . . . . . . . . . 2 . Thief 1 | . . . . . . . . . 1 . . . Assembled 31 | . . . . . . . . . . . . 31 Golem 1 | . . . . . . . . . . . . 1 Wasp 1 | . . . . . . . . . . . 1 . Savage 1 | . . . . . . . . . . . 1 . Butcher 1 | . . . . . . . . . . . 1 . Wizard 1 | . . . . . . . . . . . 1 . Mutant 5 | . . . . . . . . . . . 5 . Best Kill Streak 28 | . 4 2 . . 6 10 13 5 2 2 11 28 Combat Bots Only 28 | . 3 2 . . 6 5 4 2 2 2 3 28 Max Kills in Single Turn 19 | . 1 1 . . 5 4 12 1 1 1 2 19 Gunslinging . | . . . . . . . . . . . . . Exploded 19 | . . . . . 5 3 3 1 . . 1 19 Melee 1 | . . . . . . . . . . . . 1 Uniques/NPCs Destroyed 1 | . . . . . . . . . . . 1 . Imprinter (-6/Zion) Combat | -11 -10 -10 -10 -9 -8 -8 -7 -6 -6 -6 -6 -6 -------- Run | Yrd Mat Min Exi Min Mat Sto Fac Fac Low Low Zio Dee Hostile Shots Fired 725 | . 34 29 . . 60 71 174 54 8 17 118 160 Missed 228 | . 9 12 . . 15 20 51 17 3 5 44 52 Hits 497 | . 25 17 . . 45 51 123 37 5 12 74 108 Melee 31 | . . . . . . . . . 4 3 14 10 Projectile 466 | . 25 17 . . 45 51 123 37 1 9 60 98 AOE 2 | . . . . . . . . . . . 2 . Critical Strikes 24 | . . . . . 4 4 5 . . 2 9 . Part Disruptions 3 | . . . . . . . . 1 . . 1 1 Damage Taken 8406 | . 256 132 . . 450 713 1166 979 103 260 1271 3076 Core 1044 | . 32 15 . . 44 14 70 86 . 19 145 619 Absorbed by Shields 929 | . . . . . 173 236 296 124 . . 100 . Ignored by Resistances 58 | . . . . . . . . . . . 58 . Regen/Repaired (Parts) 248 | . 179 . . . 69 . . . . . . . Core Remaining (%) 90 | 100 . . . 81 . 89 90 . . . . . Volleys Fired 533 | . 40 13 . 2 100 71 115 35 21 27 87 22 Largest 2 | . 2 2 . 2 2 2 2 2 2 2 2 2 Hottest 136 | . 136 136 . 46 91 72 68 61 64 61 66 61 Shots Fired 929 | . 80 26 . 4 196 127 173 56 26 45 164 32 Gun 579 | . 31 . . 4 149 112 78 29 5 19 140 12 Cannon 316 | . 49 26 . . 46 . 95 23 18 26 20 13 Launcher 30 | . . . . . 1 15 . 4 3 . . 7 Special 4 | . . . . . . . . . . . 4 . Kinetic 771 | . 44 . . 4 137 112 173 52 23 45 159 22 Thermal 120 | . 36 26 . . 58 . . . . . . . Explosive 7 | . . . . . 1 2 . . . . 4 . Electromagnetic 31 | . . . . . . 13 . 4 3 . 1 10 Robot Hit Streak 26 | . 9 3 . . 25 24 20 20 23 6 26 15 Robot Miss Streak 6 | . 4 6 . . 6 1 2 1 1 1 4 1 Penetration Max 1 | . . . . . . . 1 . . . . . Secondary Targets 5 | . . . . . . . . . . . 5 . Max Gunslinging Chain 1 | . . . . . . . . . . . 1 . Shots Hit Robots 618 | . 49 11 . . 130 87 109 47 5 26 121 33 Core Hits 323 | . 23 4 . . 57 46 57 21 5 9 48 53 Critical Kills 4 | . . . . . 1 1 . . . . 2 . Critical Parts Destroyed . | . . . . . . . . . . . . . Critical Strikes 21 | . 1 . . . 1 1 10 2 . . 5 1 Destroy 4 | . . . . . 1 1 . . . . 2 . Blast 15 | . 1 . . . . . 10 2 . . 2 . Sever 2 | . . . . . . . . . . . 1 1 Melee Attacks 25 | . . . . . . . . . . . . 25 Impact . | . . . . . . . . . . . . . Slashing 25 | . . . . . . . . . . . . 25 Piercing . | . . . . . . . . . . . . . Sneak Attacks . | . . . . . . . . . . . . . Combat Hostiles . | . . . . . . . . . . . . . Follow-up Attacks . | . . . . . . . . . . . . . Damage Inflicted 21046 | . 818 257 . 5 2680 2725 4354 1563 302 651 3614 4077 Guns 7658 | . 263 . . . 1674 1398 1172 558 51 360 1995 187 Cannons 4577 | . 555 225 . . 718 . 1614 635 76 291 338 125 Explosions 7826 | . . . . . 274 1288 1483 362 175 . 1158 3086 Melee 679 | . . . . . . . . . . . . 679 Ramming 183 | . . 32 . 5 14 39 85 8 . . . . Kinetic 10714 | . 389 . . . 1548 1398 2786 1193 127 651 2327 295 Thermal 2020 | . 429 225 . . 844 79 411 . . . . 32 Explosive 2602 | . . . . . 274 588 1072 . . . 668 . Electromagnetic 4725 | . . . . . . 621 . 362 175 . 496 3071 Impact . | . . . . . . . . . . . . . Slashing 802 | . . . . . . . . . . . 123 679 Piercing . | . . . . . . . . . . . . . Highest Corruption 27 | . . . . . . 1 3 2 3 8 8 27 Average Corruption 4 | . . . . . . 1 1 1 2 5 4 12 Corruption Purged 3 | . . . . . . . 3 . . . . . Corruption Blocked . | . . . . . . . . . . . . . Effects 119 | . . . . . . 4 13 3 15 28 21 35 Message Errors 19 | . . . . . . . . 1 1 6 3 8 Matter Fused 30 | . . . . . . . 4 2 7 3 5 9 Heat Flow Errors 13 | . . . . . . 2 4 . . 3 1 3 Energy Discharges 17 | . . . . . . . 1 . 1 8 2 5 Parts Rejected 2 | . . . . . . . 1 . . 1 . . Parts Fused 2 | . . . . . . . . . . 2 . . Data Loss (minor) 14 | . . . . . . . 2 . 4 2 4 2 Data Loss (major) 5 | . . . . . . . 1 . 1 . 2 1 Misfires 5 | . . . . . . 1 . . 1 . . 3 Alerts 2 | . . . . . . . . . . 2 . . Weapon Failures 10 | . . . . . . 1 . . . 1 4 4 Overload Shots . | . . . . . . . . . . . . . Overflow Damage 648 | . . . . . 1 42 314 30 . . 119 142 Projectiles 120 | . . . . . . . 52 . . . 66 2 Explosions 461 | . . . . . 1 42 262 30 . . 53 73 Melee 67 | . . . . . . . . . . . . 67 Knockbacks 26 | . 2 1 . . . 1 14 1 . . 4 3 Impact 3 | . . 1 . . . 1 1 . . . . . Kinetic 22 | . 2 . . . . . 12 1 . . 4 3 Secondary 1 | . . . . . . . 1 . . . . . Self-Inflicted Damage 264 | . . . . . . 18 . . 66 . . 180 Shots 7 | . . . . . . 1 . . 3 . . 3 Rammed 17 | . . 2 . 1 1 3 9 1 . . . . Targets Rammed 20 | . . 2 . 1 2 3 11 1 . . . . Kicked . | . . . . . . . . . . . . . Crushed 3 | . . . . . 1 . 2 . . . . . Highest Temperature 315 | . 180 222 . . 56 143 246 . . 247 315 94 Average Temperature 44 | . 60 114 . . 14 17 40 . . 87 139 24 Received Heat Transfer 2185 | . 99 . . . 208 289 521 . . 63 324 681 Effects 2 | . . . . . . . . . . . 2 . Interference 2 | . . . . . . . . . . . 2 . Siege Activations . | . . . . . . . . . . . . . Martial Activations . | . . . . . . . . . . . . . Shielding Activations . | . . . . . . . . . . . . . Robots Disrupted . | . . . . . . . . . . . . . Combat Hostiles . | . . . . . . . . . . . . . Robots Corrupted 10 | . . . . . . 1 . 1 . . 3 5 Combat Hostiles 7 | . . . . . . 1 . . . . 1 5 Parts Fried 18 | . . . . . . 5 . 1 1 . 10 1 Impact Corruptions . | . . . . . . . . . . . . . Robots Melted . | . . . . . . . . . . . . . Combat Hostiles . | . . . . . . . . . . . . . Parts Melted 9 | . 3 . . . 3 1 . . . . 1 1 Heat Transferred 3138 | . 777 407 . . 1554 100 250 . . . . 50 Parts Sabotaged . | . . . . . . . . . . . . . Parts Stolen 3 | . . . . . . . . . 3 . . . Parts Stripped . | . . . . . . . . . . . . . Power Chain Reactions 7 | . . . . . . 5 . . . . . 2 Latent Energy Used 776 | . . . . . . . . . . . 200 576 LE Corruption 12 | . . . . . . . . . . . 3 9 Alert | -11 -10 -10 -10 -9 -8 -8 -7 -6 -6 -6 -6 -6 ------- Run | Yrd Mat Min Exi Min Mat Sto Fac Fac Low Low Zio Dee Maximum Alert Level 2 | . . . . . 1 2 2 1 . . . . Low Security (%) 64 | 100 100 100 . 100 63 18 53 96 . . . . Level 1 22 | . . . . . 36 54 4 3 . . . . Level 2 13 | . . . . . . 27 41 . . . . . Level 3 . | . . . . . . . . . . . . . Level 4 . | . . . . . . . . . . . . . Level 5 . | . . . . . . . . . . . . . High Security . | . . . . . . . . . . . . . Max Security . | . . . . . . . . . . . . . Peak Influence 600 | . 99 40 . 1 330 527 600 219 . . . . Initial 227 | . . . . . . 44 227 219 . . . . Average 159 | . 21 6 . . 138 304 265 75 . . . . Influence Increases 3812 | . 306 90 . 2 938 1026 993 287 30 140 . . Destroy 0b10 Robot/C 2080 | . 160 80 . . 600 560 380 160 20 120 . . Destroy 0b10 Robot/NC 360 | . 50 . . . 80 75 140 15 . . . . Destroy Leader 558 | . 36 10 . . 142 172 106 62 10 20 . . Allied During Kill 72 | . . . . . 21 51 . . . . . . Trap Triggered on 0b10 20 | . . . . . 20 . . . . . . . Successful Hack 99 | . 29 . . . 28 24 18 . . . . . Disable Machine 390 | . 30 . . . 15 45 255 45 . . . . Destroy Structure 158 | . 1 . . 2 17 54 79 5 . . . . Partial Spotted 15 | . . . . . . . 15 . . . . . Lose Combat Pursuer 60 | . . . . . 15 45 . . . . . . Influence Decreases 3812 | . 306 90 . 2 831 632 1045 687 79 140 . . Entered New Map 586 | . . . . . . 63 274 230 19 . . . Time Decay 2648 | . 306 90 . 2 481 519 611 447 60 132 . . Lost Part 48 | . . . . . 10 10 10 10 . 8 . . Lost Ally 80 | . . . . . 40 40 . . . . . . Purge Threat 450 | . . . . . 300 . 150 . . . . . Squads Dispatched 21 | . 1 1 . 1 5 4 6 3 . . . . Investigation 4 | . 1 1 . . 2 . . . . . . . Extermination 5 | . . . . . . . 4 1 . . . . Reinforcement 9 | . . . . 1 2 2 2 2 . . . . Assault 2 | . . . . . . 2 . . . . . . Garrison 1 | . . . . . 1 . . . . . . . Intercept . | . . . . . . . . . . . . . Searches Triggered . | . . . . . . . . . . . . . Construction Impeded 4 | . . . . 1 1 . 2 . . . . . Haulers Reinforced . | . . . . . . . . . . . . . Active Scanning Responses . | . . . . . . . . . . . . . Cargo Convoy Interrupts . | . . . . . . . . . . . . . Stealth | -11 -10 -10 -10 -9 -8 -8 -7 -6 -6 -6 -6 -6 --------- Run | Yrd Mat Min Exi Min Mat Sto Fac Fac Low Low Zio Dee Distress Signals 18 | . . . . 2 6 6 3 1 . . . . Communications Jammed 8 | . . . . . . . . 7 1 . . . Distress Signals 3 | . . . . . . . . 2 1 . . . Times Spotted 239 | . 11 6 . . 47 32 25 10 4 6 44 54 Peak Tracking Total 46 | . 3 3 . 1 4 5 6 4 3 2 9 46 Tactical Retreats 9 | . . . . . 1 3 . . . . 3 2 Traps | -11 -10 -10 -10 -9 -8 -8 -7 -6 -6 -6 -6 -6 ------- Run | Yrd Mat Min Exi Min Mat Sto Fac Fac Low Low Zio Dee Traps Triggered 10 | . 2 . . . 1 4 2 1 . . . . Indirectly 2 | . . . . . . 2 . . . . . . Trap Hack Attempts 17 | . 17 . . . . . . . . . . . Triggered 1 | . 1 . . . . . . . . . . . Disarmed . | . . . . . . . . . . . . . Reprogrammed 2 | . 2 . . . . . . . . . . . Reused 2 | . . . . . 2 . . . . . . . Traps Extracted 2 | . 2 . . . . . . . . . . . Installed 2 | . . . . . 2 . . . . . . . Triggered 2 | . . . . . 2 . . . . . . . Most Traps Carried 2 | . 2 2 2 2 2 . . . . . . . Machines | -11 -10 -10 -10 -9 -8 -8 -7 -6 -6 -6 -6 -6 ---------- Run | Yrd Mat Min Exi Min Mat Sto Fac Fac Low Low Zio Dee Machines Disabled 29 | . 2 . . . 1 3 17 3 . 1 1 1 Max in Single Turn 6 | . 1 . . . 1 1 6 2 . 1 1 1 Garrison Access 4 | . . . . . 1 1 . 2 . . . . Machines Repaired . | . . . . . . . . . . . . . Machines Dismantled . | . . . . . . . . . . . . . Machines Sabotaged . | . . . . . . . . . . . . . Overloaded Fab Kills . | . . . . . . . . . . . . . Hacking | -11 -10 -10 -10 -9 -8 -8 -7 -6 -6 -6 -6 -6 --------- Run | Yrd Mat Min Exi Min Mat Sto Fac Fac Low Low Zio Dee Machines Accessed 39 | . 6 1 2 1 11 10 6 2 . . . . Terminals 28 | . 5 . . 1 7 9 6 . . . . . Fabricators . | . . . . . . . . . . . . . Repair Stations 2 | . 1 . . . 1 . . . . . . . Recycling Units . | . . . . . . . . . . . . . Scanalyzers 2 | . . . . . 2 . . . . . . . Garrison Access 4 | . . . . . 1 1 . 2 . . . . Total Hacks 109 | . 25 1 2 2 38 18 17 6 . . . . Successful 56 | . 17 1 2 . 18 11 5 2 . . . . Failed 52 | . 7 . . 2 20 7 12 4 . . . . Catastrophic 7 | . . . . 1 4 . 1 1 . . . . Database Lockouts 1 | . 1 . . . . . . . . . . . Manual 53 | . 14 . 1 2 11 11 9 . . . 5 . Terminals 71 | . 16 . . 2 19 17 17 . . . . . Fabricators . | . . . . . . . . . . . . . Repair Stations 15 | . 9 . . . 6 . . . . . . . Recycling Units . | . . . . . . . . . . . . . Scanalyzers 11 | . . . . . 11 . . . . . . . Garrison Access 9 | . . . . . 2 1 . 6 . . . . Terminal Hacks 19 | . 2 1 2 . 4 6 4 . . . . . Record 2 | . . . 1 . . 1 . . . . . . Robot Analysis 4 | . 1 . . . 1 . 2 . . . . . Prototype ID Bank 2 | . . . . . 1 1 . . . . . . Open Door 4 | . . 1 . . . 3 . . . . . . Terminal Index 1 | . . . . . . 1 . . . . . . Unreport Threat 3 | . . . . . 2 . 1 . . . . . Locate Traps 2 | . 1 . . . . . 1 . . . . . Proto ID Catalog 1 | . . . 1 . . . . . . . . . Fabricator Hacks . | . . . . . . . . . . . . . Repair Station Hacks 12 | . 8 . . . 4 . . . . . . . Scan Component 6 | . 4 . . . 2 . . . . . . . Repair 6 | . 4 . . . 2 . . . . . . . Recycling Unit Hacks . | . . . . . . . . . . . . . Scanalyzer 7 | . . . . . 7 . . . . . . . Insert Component 1 | . . . . . 1 . . . . . . . Analyze 2 | . . . . . 2 . . . . . . . Retrieve Study 4 | . . . . . 4 . . . . . . . Garrison Access Hacks 4 | . . . . . 1 1 . 2 . . . . Seal Access 4 | . . . . . 1 1 . 2 . . . . Unauthorized Hacks 14 | . 7 . . . 2 4 1 . . . . . Terminals 14 | . 7 . . . 2 4 1 . . . . . Botnet 2 | . 1 . . . 1 . . . . . . . Operators 1 | . 1 . . . . . . . . . . . Skim 11 | . 5 . . . 1 4 1 . . . . . Fabricators . | . . . . . . . . . . . . . Repair Stations . | . . . . . . . . . . . . . Recycling Units . | . . . . . . . . . . . . . Scanalyzers . | . . . . . . . . . . . . . Garrison Access . | . . . . . . . . . . . . . Data Cores Recovered 1 | . . . . . 1 . . . . . . . Used . | . . . . . . . . . . . . . Hacking Detections 32 | . 6 . . 1 10 7 6 2 . . . . Full Trace Events 2 | . . . . . 2 . . . . . . . Feedback Events . | . . . . . . . . . . . . . Feedback Blocked . | . . . . . . . . . . . . . Robot Schematics Acquired . | . . . . . . . . . . . . . Robots Built . | . . . . . . . . . . . . . Authchips . | . . . . . . . . . . . . . Time . | . . . . . . . . . . . . . Total Robot Build Rating . | . . . . . . . . . . . . . Part Schematics Acquired 1 | . . . . . 1 . . . . . . . Parts Built . | . . . . . . . . . . . . . Authchips . | . . . . . . . . . . . . . Time . | . . . . . . . . . . . . . Total Part Build Rating . | . . . . . . . . . . . . . Part Studies Acquired 4 | . . . . . 4 . . . . . . . Parts Repaired 6 | . 4 . . . 2 . . . . . . . Time 168 | . 110 . . . 58 . . . . . . . Parts Recycled . | . . . . . . . . . . . . . Recycled Matter . | . . . . . . . . . . . . . Retrieved Matter . | . . . . . . . . . . . . . Retrieved Components . | . . . . . . . . . . . . . Parts Scanalyzed 1 | . . . . . 1 . . . . . . . Part Schematics Acquired 1 | . . . . . 1 . . . . . . . Parts Damaged . | . . . . . . . . . . . . . Bothacking | -11 -10 -10 -10 -9 -8 -8 -7 -6 -6 -6 -6 -6 ------------ Run | Yrd Mat Min Exi Min Mat Sto Fac Fac Low Low Zio Dee Used RIF Installer . | . . . . . . . . . . . . . Robots Hacked . | . . . . . . . . . . . . . Non-combat . | . . . . . . . . . . . . . Combat . | . . . . . . . . . . . . . Robot Hacks Applied . | . . . . . . . . . . . . . Relay Couplers Released . | . . . . . . . . . . . . . Fabnet Peak Effective % . | . . . . . . . . . . . . . Robots Rewired . | . . . . . . . . . . . . . Allies Hacked . | . . . . . . . . . . . . . Hacks Repelled . | . . . . . . . . . . . . . Allies | -11 -10 -10 -10 -9 -8 -8 -7 -6 -6 -6 -6 -6 -------- Run | Yrd Mat Min Exi Min Mat Sto Fac Fac Low Low Zio Dee Total Allies 13 | . . . . 3 . 2 . . . . 8 . Largest Group 8 | . . . . 3 3 2 . . . . 8 . Highest-Rated Group 215 | . . . . 40 40 62 . . . . 215 . Highest-Rated Ally 51 | . . . . 16 16 31 . . . . 51 . Total Orders 16 | . . . . 4 12 . . . . . . . STAY 8 | . . . . 2 6 . . . . . . . FOLLOW 8 | . . . . 2 6 . . . . . . . Ally Attacks 94 | . . . . . 32 62 . . . . . . Total Damage 1342 | . . . . . 400 942 . . . . . . Kills 12 | . . . . . 2 10 . . . . . . Allies Corrupted . | . . . . . . . . . . . . . Allies Melted . | . . . . . . . . . . . . . Intel | -11 -10 -10 -10 -9 -8 -8 -7 -6 -6 -6 -6 -6 ------- Run | Yrd Mat Min Exi Min Mat Sto Fac Fac Low Low Zio Dee Active Infowar (turns) 7553 | . 645 . . . . . 1533 1184 975 1089 2127 . Optics 645 | . 645 . . . . . . . . . . . Terrain 4905 | . . . . . . . 1533 1034 975 1071 292 . Cloaking 4216 | . . . . . . . . 28 972 1089 2127 . Jamming 2538 | . . . . . . . . 1007 975 556 . . Robot Analysis Total 4 | . 1 . . . 1 . 2 . . . . . Derelict Logs Recovered 4 | . . 1 . 1 . . . . . 1 1 . Drone Launches . | . . . . . . . . . . . . . Drone Recoveries . | . . . . . . . . . . . . . Exploration | -11 -10 -10 -10 -9 -8 -8 -7 -6 -6 -6 -6 -6 ------------- Run | Yrd Mat Min Exi Min Mat Sto Fac Fac Low Low Zio Dee Turns Passed 20193 | 48 1745 633 640 789 3802 2638 2480 1184 975 1089 3398 772 Spaces Moved 9210 | 34 872 354 385 421 1150 1016 1107 515 533 600 1788 435 Core 16 | 16 . . . . . . . . . . . . Treads 8970 | 18 872 354 385 421 1150 1016 1107 515 533 600 1788 211 Legs 224 | . . . . . . . . . . . . 224 Wheels . | . . . . . . . . . . . . . Hover . | . . . . . . . . . . . . . Flight . | . . . . . . . . . . . . . Fastest Speed 50 | 50 160 160 160 160 160 148 148 165 160 160 156 112 Average Speed 157 | 109 160 160 160 160 160 150 156 165 161 160 159 135 Slowest Speed 240 | 160 160 160 160 160 160 160 165 165 240 160 160 190 Overloaded Moves . | . . . . . . . . . . . . . Propulsion Burnouts . | . . . . . . . . . . . . . Robots Hopped . | . . . . . . . . . . . . . Potential Cave-ins 2 | . . . . . . . . . . 2 . . Cave-ins Triggered . | . . . . . . . . . . . . . Exploration Rate (%) 59 | 3 91 60 70 63 78 92 37 15 65 55 88 60 Regions Visited 12 Branch Regions 8 Pre-discovered Areas 3 | . . . 1 . . . . . . . 2 . Known Exits Taken 3 | . . . . . 1 1 . 1 . . . . Unknown Exits Taken 9 | 1 1 1 1 1 . . 1 . 1 1 1 . Scrap Searched 13 | . . 1 . . . . . . 9 1 2 . Spaces Dug 59 | . . . . . . . 41 1 12 5 . . Terrain Destroyed 210 | . . . . . 13 44 78 5 16 17 15 22 Melee . | . . . . . . . . . . . . . Projectile 67 | . . . . . . . 20 5 16 17 2 7 AOE 143 | . . . . . 13 44 58 . . . 13 15 Terrain Rammed . | . . . . . . . . . . . . . Walls Destroyed . | . . . . . . . . . . . . . Machines Disabled . | . . . . . . . . . . . . . Actions | -11 -10 -10 -10 -9 -8 -8 -7 -6 -6 -6 -6 -6 --------- Run | Yrd Mat Min Exi Min Mat Sto Fac Fac Low Low Zio Dee Total 14020 | 44 1145 394 410 533 2949 2034 1691 794 623 683 2172 548 Wait 3648 | . 150 24 4 110 1616 886 385 183 52 46 179 13 Move 9198 | 33 871 353 384 420 1149 1015 1106 514 532 599 1787 435 Hop . | . . . . . . . . . . . . . Pick Up 157 | 5 31 1 4 . 21 12 16 17 6 2 28 14 Fast Attach 54 | 1 4 . 5 . 5 4 6 4 1 3 19 2 Attach 60 | 5 4 . 1 . 4 1 6 3 4 2 11 19 Detach 4 | . . . . . . . . . . . 2 2 Swap 130 | . 14 . 3 . 25 18 21 19 2 1 18 9 Drop 172 | . 14 1 9 . 25 24 25 18 5 3 41 7 Fire 533 | . 40 13 . 2 100 71 115 35 21 27 87 22 Melee 25 | . . . . . . . . . . . . 25 Ram . | . . . . . . . . . . . . . Kick . | . . . . . . . . . . . . . Crush 20 | . . 2 . 1 2 3 11 1 . . . . Escape Stasis . | . . . . . . . . . . . . . Rewire . | . . . . . . . . . . . . . Trap 19 | . 17 . . . 2 . . . . . . . Miscellaneous . | . . . . . . . . . . . . . Route ------- -11/Scrapyard -10/Materials (discovered 6 exits: [*Mat x3] / *Min x2 / [*Sub]) -10/Mines (discovered 3 exits: [*Mat x2] / *Exi) -10/Exiles -9/Mines -8/Materials (discovered 4 exits: *Fac x2 / *Sto x2) -8/Storage (discovered 2 exits: *Fac / Rec) -7/Factory -6/Factory -6/Lower Caves -6/Lower Caves (discovered 2 exits: [*Fac] / *Zio) -6/Zion -6/Deep Caves History --------- Turn | Location | Event 4 | -11/Scrapyard | Discovered new exit (range 16) 49 | -11/Scrapyard | Entered Materials 306 | -10/Materials | Build established: Mutant 337 | -10/Materials | Discovered new exit (range 9) 415 | -10/Materials | Discovered new exit (range 14) 539 | -10/Materials | Discovered new exit (range 9) 686 | -10/Materials | Discovered new exit (range 15) 862 | -10/Materials | Discovered new exit (range 15) 1049 | -10/Materials | Discovered new exit (range 11) 1117 | -10/Materials | Central database locked down 1179 | -10/Materials | Learned location of 1 exit from Storage 1204 | -10/Materials | Repaired Lgt. Treads 1230 | -10/Materials | Repaired Lgt. Treads 1230 | -10/Materials | Learned location of 1 exit from Storage 1264 | -10/Materials | Repaired Particle Cannon 1357 | -10/Materials | Learned 2 Mines zone layouts 1461 | -10/Materials | Repaired Lgt. Treads 1794 | -10/Materials | Entered Mines 1894 | -10/Mines | Learned 2 Materials zone layouts 2013 | -10/Mines | Met a Derelict shopkeep closing up shop 2101 | -10/Mines | Discovered new exit (range 6) 2187 | -10/Mines | Found a hidden stash of uninstalled traps 2313 | -10/Mines | Discovered new exit (range 8) 2416 | -10/Mines | Deemed a non-threat by the Exiles lab entrance 2417 | -10/Mines | Discovered new exit (range 5) 2427 | -10/Mines | Entered Exiles 2467 | -10/Exiles | Met 8R-AWN 2495 | -10/Exiles | Met EX-HEX 2541 | -10/Exiles | Met EX-BIN 2564 | -10/Exiles | Aligned with FarCom system 2566 | -10/Exiles | Given EX-Vault access code 2604 | -10/Exiles | Opened EX-Vault 2614 | -10/Exiles | Found Latent Energy Streamer 2631 | -10/Exiles | Found Longsword +1 2689 | -10/Exiles | Warned to stay clear of 0b10 Research branches 2828 | -10/Exiles | Met EX-DEC 2834 | -10/Exiles | Learned location of Zion (-6) 3044 | -10/Exiles | Discovered new exit (range 14) 3067 | -10/Exiles | Left Exiles lab with Latent Energy Streamer 3067 | -10/Exiles | Entered Mines 3108 | -9/Mines | Met a Derelict bent on vengeance 3250 | -9/Mines | Discovered new exit (range 7) 3254 | -9/Mines | YI-UF0 nonchalantly dropped a Grenade Launcher on the ground 3329 | -9/Mines | Assisted by bots powering up and referring to "LRC-V3" 3434 | -9/Mines | Learned location of 1 exit from Materials 3657 | -9/Mines | Assembled infested the area 3856 | -9/Mines | Entered Materials 3856 | -8/Materials | Accompanied by 3 allies 3856 | -8/Materials | Evolved 4 slots: Propulsion x2, Utility x2 3857 | -8/Materials | Identified exit to Storage 3859 | -8/Materials | Identified exit to Factory 5343 | -8/Materials | Build established: Scavenger-Mutant 5429 | -8/Materials | Garrison activated, responded to threat 5571 | -8/Materials | Discovered exit to Factory (range 16) 5782 | -8/Materials | Build established: Mutant 6249 | -8/Materials | Build established: Scavenger-Mutant 7584 | -8/Materials | Repaired Shield Generator 7611 | -8/Materials | Repaired Lgt. Treads+ 7658 | -8/Materials | Entered Storage 7659 | -8/Storage | Identified exit to Recycling 8074 | -8/Storage | Met a pair of Derelict thieves 8506 | -8/Storage | Build established: Mutant 10296 | -8/Storage | Entered Factory 10296 | -7/Factory | Evolved 2 slots: Utility x2 11177 | -7/Factory | Build established: Skirmisher 12758 | -7/Factory | Discovered new exit (range 6) 12776 | -7/Factory | Entered another Factory area 12776 | -6/Factory | Evolved 2 slots: Power x1, Utility x1 13901 | -6/Factory | Discovered new exit (range 16) 13959 | -6/Factory | Identified exit to Lower Caves 13960 | -6/Factory | Entered Lower Caves 14274 | -6/Lower Caves | Build established: Infiltrator-Mutant 14493 | -6/Lower Caves | Encountered a Warlord checkpoint 14917 | -6/Lower Caves | Discovered new exit (range 12) 14935 | -6/Lower Caves | Entered another Lower Caves area 15000 | -6/Lower Caves | Learned 4 Factory zone layouts 15326 | -6/Lower Caves | Encountered a Warlord checkpoint 15672 | -6/Lower Caves | Discovered new exit (range 16) 15791 | -6/Lower Caves | Build established: Mutant 15959 | -6/Lower Caves | Discovered new exit (range 15) 16024 | -6/Lower Caves | Entered Zion 16097 | -6/Zion | System corruption cleaned by Quarantine Array 16495 | -6/Zion | Found Prototype Special Weapon 16498 | -6/Zion | Found Prototype Special Weapon 16499 | -6/Zion | Identified RU-N14's Throwing Claymores (x2) 16506 | -6/Zion | Found RU-N14's Throwing Claymores 16589 | -6/Zion | Learned Factory terminal intel 16606 | -6/Zion | Build established: Derelict-Mutant 16625 | -6/Zion | Given A8's code to call for help 16785 | -6/Zion | Gained Derelict followers 16844 | -6/Zion | Rebuked by Imprinter 17108 | -6/Zion | Given the Hacking Drone Bay 17108 | -6/Zion | Found Prototype Device 17256 | -6/Zion | Gained Derelict followers 17256 | -6/Zion | Learned location of Armory (-4) 17404 | -6/Zion | Identified Hacking Drone Bay 18290 | -6/Zion | Found RU-N14's Throwing Claymores 18688 | -6/Zion | Attacked by Zionites 18756 | -6/Zion | Lost 5 parts (1p4u) 18794 | -6/Zion | Destroyed Imprinter 18952 | -6/Zion | Extracted access codes from Imprinter's data core 18959 | -6/Zion | Build established: Mutant 19371 | -6/Zion | Opened final containment barrier to the Deep Caves 19410 | -6/Zion | Discovered new exit (range 5) 19413 | -6/Zion | Saw the warning signs outside the Deep Caves entrance 19422 | -6/Zion | Entered Deep Caves 19536 | -6/Deep Caves | Build established: Scavenger-Mutant 19764 | -6/Deep Caves | System corruption reached 10% 19793 | -6/Deep Caves | Core integrity fell below 50% 19812 | -6/Deep Caves | Core integrity fell below 20% 19825 | -6/Deep Caves | Lost 11 parts (1p7n2u1w) 19838 | -6/Deep Caves | Found Prototype Protection 19839 | -6/Deep Caves | Identified Zio. Weapon Casing 20145 | -6/Deep Caves | Exposed GOLEM chamber 20146 | -6/Deep Caves | Triggered Deep Caves wall 20165 | -6/Deep Caves | Spotted Golem 20170 | -6/Deep Caves | Destroyed Golem 20190 | -6/Deep Caves | Spotted Assembler 20194 | -6/Deep Caves | Destroyed self with Latent Energy Streamer Last Messages --------------- 20192_ as-62559 destroyed. 20192_ as-85979 destroyed. 20192_ as-72873 destroyed. 20192_ A GOLEM Unit tumbles out of the Wall Chamber. 20192_ Destroyed Asb. F-torch. 20192_ as-33336 destroyed. 20192_ as-45646 destroyed. [Achievement: Killing Spree] 20193_ as-12437 system terminally corrupted. 20193_ 5G-PNT(l) system terminally corrupted. 20193_ as-22560 system terminally corrupted. 20193_ Imp. VSS Leg destroyed. 20193_ System corrupted by crushing effect (+2). 20193_ Flexi-carbon Leg destroyed. 20194_ as-05346 system terminally corrupted. 20194_ as-65259 destroyed. 20194_ as-73654 destroyed. 20194_ as-12601 destroyed. 20194_ as-78711 destroyed. Map ----- +----------------------------------------------------+ | ?????????????????????????????????? ??? | | ?????????????????????????????????? ??? | | ?????????????????????????????????? ??? | | ?????????????????????????????????? ??? | | ????????????????????????????????## ??? | | ????????????????????????????????# #?? | | ???????????????????????????????? ?? | | ???????????????????????????????? ?# | | ????????????????????????????????? ? | | ????????????????????????????????? ? | | ??????????? A ?????????????????# #?# | | ????????? ??????????????## #?# | | ???????aa a % = ??????????## ### | | ??????? a / g =?? ???# ## | | ???????? ll ???# | | ???????? ????# | | ???????##a #???#### | | ????????!! #??????# | | ????????"! a [ g #??????# | | ????????"! l #??????# | | ????????"G [ [ ##?????# # | | ????????"G a a[ #?????# # | | ????????# #?????# # | | ????????" #?????# # | | ????????" a a ####### # | | ????????" G@% [ # | | ????????""" %% a [ #### | | ????????" [ #??? | | ????????"" a #### #??? | | ????????" % #??# #??? | | ????????"" "#??# ??? | | ????????" # # "#??####?? | | ????????" #### ;# ## ###???????? | | ????????""" ###??# ## ####?????????? | | ?????????" ?????###? ?????????????? | | ?????????#####?????????#?????????????? | | | | | | | | | | | | | | | | | | | | | | | | | | | | | +----------------------------------------------------+ Best States ------------- Heat Dissipation 147 Energy Generation 49 Energy Capacity 820 Matter Stores 300 Matter Capacity 300 Sight Range 18 Terrain Scan Range 16 Terrain Scan Density 410 Jamming Range 12 Cloak Strength 2 Armor Coverage 800 Resistance: KI 20 Resistance: EM 15 Weapon Shielding 100 Phase Shifting 5 Evasion (%) 65 Targeting Accuracy 8 Core Analysis 6 Recoil Reduction 4 Salvage Targeting 1 Trap Extractor Capacity 4 Item Schematics ----------------- VSS Leg | -8/Materials | Scanalyzed Robot Schematics ------------------ None Fabricated ------------ Nothing Repaired ---------- Lgt. Treads | 67% | -10/Materials Lgt. Treads | 80% | -10/Materials Particle Cannon | 43% | -10/Materials Lgt. Treads | 69% | -10/Materials Shield Generator | 13% | -8/Materials Lgt. Treads | 69% | -8/Materials Studied --------- Lgt. Treads | -8/Materials | Hacked VSS Leg | -8/Materials | Hacked Minigun | -8/Materials | Hacked Missile Launcher | -8/Materials | Hacked Alien Tech Used ----------------- None Achievements -------------- Killing Spree Signs Are For Wimps That's One Door That Should Stay Closed Challenges ------------ None Game ------ Seed LobotomyAbsorptionCoupler Manual? 0 Play Time 03:43:35 Cumulative 128.9 hours Start 2026.04.21 @ 18:48:23 End 2026.05.01 @ 17:50:33 Sessions 11 Manual Loads 0 Difficulty Rogue Special Mode None Game No. 94 Rogue 94 Adventurer 0 Explorer 0 Win Type - Total 1 Types 0/0/0/1/0/0/0/0/0/0 Lore% 48 Gallery% 54 Achievement% 51 Wizard Run 0 Options --------- Layout 2 ASCII 0 Keyboard 0 Movement Mouse Keybinds 0 Fullscreen 1 Font 48/Smallcaps Map View 50x44 Zoom Use 0% Tactical HUD 1 Map Filters NONE Filters NONE Steam 1 RUN: e6b81c9a-16f2-4731-94b7-88622a3fda32